lending/lending_fUSD_20250406
["ID","MTS","AMOUNT","RATE_DAILY","PERIOD"]
[357283398,1743978644248,-500.0,0.00052054,120]
[357283399,1743978644287,-500.0,0.00052054,120]
[357283400,1743978644325,-1064.76,0.00052054,120]
[357283401,1743978644362,-500.0,0.00052054,120]
[357283402,1743978644401,-500.0,0.00052054,120]
[357283403,1743978644440,-511.90346361,0.00052054,120]
[357283404,1743978644482,-500.0,0.00052054,120]
[357283405,1743978644523,-730.54,0.00052054,120]
[357283406,1743978644562,-500.0,0.00052054,120]
[357283407,1743978644603,-500.0,0.00052054,120]
[357283408,1743978644643,-500.0,0.00052054,120]
[357283409,1743978644683,-364.36298309,0.00052054,120]
[357283410,1743978644723,-500.0,0.00052054,120]
[357283411,1743978644764,-500.0,0.00052054,120]
[357283412,1743978644804,-500.0,0.00052054,120]
[357283413,1743978644845,-500.0,0.00052054,120]
[357283414,1743978644888,-318.79002,0.00052054,120]
[357283415,1743978644930,-318.79002,0.00052054,120]
[357283416,1743978644972,-500.0,0.00052054,120]
[357283417,1743978645014,-517.6632632,0.00052054,120]
[357283418,1743978645056,-500.0,0.00052054,120]
[357283419,1743978645099,-722.25,0.00052054,120]
[357283420,1743978645142,-500.0,0.00052054,120]
[357283421,1743978645182,-500.0,0.00052054,120]
[357283422,1743978645222,-500.0,0.00052054,120]
[357283423,1743978645261,-318.79002,0.00052054,120]
[357283424,1743978645301,-500.0,0.00052054,120]
[357283425,1743978645340,-500.0,0.00052054,120]
[357283426,1743978645379,-318.79002,0.00052054,120]
[357283427,1743978645419,-500.0,0.00052054,120]
[357283428,1743978645465,-281.83218983,0.00052054,120]
[357283429,1743978645504,-500.0,0.00052054,120]
[357283430,1743978645541,-500.0,0.00052054,120]
[357283431,1743978645580,-500.0,0.00052054,120]
[357283432,1743978645619,-500.0,0.00052054,120]
[357283433,1743978645658,-500.0,0.00052054,120]
[357283434,1743978645697,-500.0,0.00052054,120]
[357283435,1743978645737,-500.0,0.00052054,120]
[357283436,1743978645777,-500.0,0.00052054,120]
[357283437,1743978645817,-500.0,0.00052054,120]
[357283438,1743978645857,-500.0,0.00052054,120]
[357283439,1743978645898,-500.0,0.00052054,120]
[357283444,1743978645941,-500.0,0.00052054,120]
[357283450,1743978645984,-500.0,0.00052054,120]
[357283455,1743978646029,-151.0,0.00052054,120]
[357283460,1743978646072,-500.0,0.00052054,120]
[357283465,1743978646117,-500.0,0.00052054,120]
[357283468,1743978646161,-500.0,0.00052054,120]
[357283469,1743978646202,-151.0,0.00052054,120]
[357283470,1743978646244,-500.0,0.00052054,120]
[357283471,1743978646286,-500.0,0.00052054,120]
[357283472,1743978646328,-500.0,0.00052054,120]
[357283473,1743978646369,-399.24155212,0.00052054,120]
[357283474,1743978646413,-500.0,0.00052054,120]
[357283475,1743978646458,-507.66795201,0.00052054,120]
[357283476,1743978646501,-525.19544162,0.00052054,120]
[357283477,1743978646547,-500.0,0.00052054,120]
[357283478,1743978646590,-500.0,0.00052054,120]
[357283479,1743978646636,-847.16,0.00052054,120]
[357283480,1743978646682,-500.0,0.00052054,120]
[357283481,1743978646725,-299.73167623,0.00052054,120]
[357283485,1743978646766,-500.0,0.00052054,120]
[357283487,1743978646805,-500.0,0.00052054,120]
[357283488,1743978646846,-151.0,0.00052054,120]
[357283489,1743978647067,-496.04022891,0.00052054,60]
[357283490,1743978647118,-151.0,0.00052054,120]
[357283491,1743978647166,-684.69,0.00052054,120]
[357283492,1743978647212,-500.0,0.00052054,120]
[357283493,1743978647258,-500.0,0.00052054,120]
[357283494,1743978647303,-500.0,0.00052054,120]
[357283495,1743978647349,-759.9,0.00052054,120]
[357283496,1743978647403,-500.0,0.00052054,120]
[357283497,1743978647450,-500.0,0.00052054,120]
[357283498,1743978647493,-500.0,0.00052054,120]
[357283499,1743978647538,-500.0,0.00052054,120]
[357283500,1743978647583,-500.0,0.00052054,120]
[357283501,1743978647628,-1057.85,0.00052054,120]
[357283502,1743978647677,-524.61825032,0.00052054,120]
[357283503,1743978647722,-864.94,0.00052054,120]
[357283504,1743978647766,-525.64405219,0.00052054,120]
[357283505,1743978647811,-500.0,0.00052054,120]
[357283506,1743978647857,-315.313957,0.00052054,120]
[357283507,1743978647902,-315.313957,0.00052054,120]
[357283508,1743978647947,-527.41351156,0.00052054,120]
[357283509,1743978647994,-500.0,0.00052054,120]
[357283510,1743978648038,-502.91418345,0.00052054,120]
[357283511,1743978648084,-500.0,0.00052054,120]
[357283512,1743978648130,-500.0,0.00052054,120]
[357283513,1743978648178,-315.313957,0.00052054,120]
[357283514,1743978648223,-151.0,0.00052054,120]
[357283515,1743978648266,-151.0,0.00052054,120]
[357283516,1743978648308,-315.313957,0.00052054,120]
[357283517,1743978648350,-502.63216405,0.00052054,120]
[357283518,1743978648398,-500.0,0.00052054,30]
[357283519,1743978648442,-272.07789,0.00052054,120]
[357283520,1743978648485,-272.07789,0.00052054,120]
[357283521,1743978648529,-500.0,0.00052054,120]
[357283522,1743978648572,-154.93753502,0.00052054,120]
[357283523,1743978648615,-500.0,0.00052054,120]
[357283524,1743978648659,-500.0,0.00052054,120]
[357283525,1743978648701,-502.0048846,0.00052054,120]
[357283526,1743978648744,-2231.7,0.00052054,120]
[357283527,1743978648787,-272.07789,0.00052054,120]
[357283528,1743978648829,-500.0,0.00052054,120]
[357283529,1743978648872,-272.07789,0.00052054,120]
[357283530,1743978648919,-500.0,0.00052054,120]
[357283531,1743978648962,-500.0,0.00052054,120]
[357283532,1743978649004,-500.0,0.00052054,120]
[357283533,1743978649046,-500.0,0.00052054,120]
[357283534,1743978649087,-500.0,0.00052054,120]
[357283535,1743978649130,-500.0,0.00052054,120]
[357283536,1743978649174,-500.0,0.00052054,120]
[357283537,1743978649215,-500.0,0.00052054,120]
[357283538,1743978649256,-500.0,0.00052054,120]
[357283539,1743978649296,-500.0,0.00052054,120]
[357283540,1743978649336,-1379.87,0.00052054,120]
[357283541,1743978649374,-502.00184778,0.00052054,120]
[357283542,1743978649416,-500.0,0.00052054,120]
[357283543,1743978649455,-536.2972115,0.00052054,120]
[357283544,1743978649496,-2290.649634,0.00052054,120]
[357283545,1743978649535,-816.56,0.00052054,120]
[357283546,1743978649576,-2290.649634,0.00052054,120]
[357283547,1743978649615,-547.12,0.00052054,120]
[357283548,1743978649655,-504.25235233,0.00052054,120]
[357283549,1743978649698,-2290.649634,0.00052054,120]
[357283550,1743978649740,-500.0,0.00052054,120]
[357283551,1743978649782,-2290.649634,0.00052054,120]
[357283552,1743978649822,-500.0,0.00052054,120]
[357283553,1743978649864,-500.0,0.00052054,120]
[357283554,1743978649908,-500.0,0.00052054,120]
[357283555,1743978649952,-542.92,0.00052054,120]
[357283556,1743978649994,-500.0,0.00052054,120]
[357283557,1743978650036,-151.0,0.00052054,120]
[357283558,1743978650078,-500.0,0.00052054,120]
[357283559,1743978650121,-151.0,0.00052054,120]
[357283560,1743978650164,-500.0,0.00052054,120]
[357283561,1743978650206,-500.0,0.00052054,120]
[357283562,1743978650249,-500.0,0.00052054,120]
[357283563,1743978650290,-784.97,0.00052054,120]
[357283564,1743978650334,-500.0,0.00052054,120]
[357283565,1743978650377,-500.0,0.00052054,120]
[357283566,1743978650427,-500.0,0.00052054,120]
[357283567,1743978650472,-500.0,0.00052054,120]
[357283568,1743978650512,-500.0,0.00052054,120]
[357283569,1743978650552,-500.0,0.00052054,120]
[357283570,1743978650592,-500.0,0.00052054,120]
[357283571,1743978650631,-17244.18,0.00052054,120]
[357283572,1743978650676,-500.0,0.00052054,120]
[357283573,1743978650717,-500.0,0.00052054,120]
[357283574,1743978650758,-500.0,0.00052054,120]
[357283575,1743978650801,-845.19,0.00052054,120]
[357283576,1743978650843,-526.81,0.00052054,120]
[357283577,1743978650885,-500.0,0.00052054,120]
[357283578,1743978650929,-500.0,0.00052054,120]
[357283579,1743978650972,-550.05982865,0.00052054,120]
[357283580,1743978651014,-542.38123427,0.00052054,120]
[357283581,1743978651056,-500.0,0.00052054,120]
[357283582,1743978651099,-500.0,0.00052054,120]
[357283583,1743978651335,-500.0,0.00052054,120]
[357283584,1743978651378,-500.0,0.00052054,120]
[357283585,1743978651424,-500.0,0.00052054,120]
[357283586,1743978651471,-500.0,0.00052054,120]
[357283587,1743978651516,-574.56,0.00052054,120]
[357283588,1743978651560,-500.0,0.00052054,120]
[357283589,1743978651605,-500.0,0.00052054,120]
[357283590,1743978651656,-500.0,0.00052054,120]
[357283591,1743978651708,-500.0,0.00052054,120]
[357283592,1743978651761,-500.0,0.00052054,120]
[357283593,1743978651809,-500.0,0.00052054,120]
[357283594,1743978651860,-151.0,0.00052054,120]
[357283595,1743978652124,-698.52,0.00052054,120]
[357283596,1743978652182,-151.0,0.00052054,120]
[357283597,1743978652230,-525.34562992,0.00052054,120]
[357283598,1743978652274,-500.0,0.00052054,120]
[357283599,1743978652320,-500.0,0.00052054,120]
[357283600,1743978652363,-1203.18,0.00052054,120]
[357283601,1743978652409,-1324.2,0.00052054,120]
[357283602,1743978652454,-500.0,0.00052054,120]
[357283603,1743978652496,-539.75,0.00052054,120]
[357283604,1743978652537,-500.0,0.00052054,120]
[357283605,1743978652577,-500.0,0.00052054,120]
[357283606,1743978652619,-383.28463614,0.00052054,120]
[357283607,1743978652660,-301.06239804,0.00052054,30]
[357283608,1743978652705,-846.65,0.00052054,120]
[357283609,1743978652746,-500.0,0.00052054,120]
[357283610,1743978652788,-500.0,0.00052054,120]
[357283611,1743978652829,-500.0,0.00052054,120]
[357283612,1743978652872,-500.0,0.00052054,120]
[357283613,1743978652914,-517.06377583,0.00052054,120]
[357283614,1743978652955,-626.19,0.00052054,120]
[357283615,1743978652997,-725.86,0.00052054,120]
[357283616,1743978653038,-500.0,0.00052054,120]
[357283617,1743978653080,-500.0,0.00052054,120]
[357283618,1743978653124,-500.0,0.00052054,120]
[357283619,1743978653165,-500.0,0.00052054,120]
[357283620,1743978653206,-500.0,0.00052054,120]
[357283621,1743978653247,-500.0,0.00052054,120]
[357283622,1743978653287,-523.147605,0.00052054,120]
[357283623,1743978653328,-775.01,0.00052054,100]
[357283624,1743978653368,-503.22731153,0.00052054,120]
[357283625,1743978653410,-500.0,0.00052054,120]
[357283626,1743978653451,-151.0,0.00052054,120]
[357283627,1743978653496,-500.0,0.00052054,120]
[357283628,1743978653536,-151.0,0.00052054,120]
[357283629,1743978653577,-524.36984026,0.00052054,120]
[357283630,1743978653622,-1128.03,0.00052054,120]
[357283631,1743978653666,-500.0,0.00052054,120]
[357283632,1743978653711,-1819.63,0.00052054,120]
[357283633,1743978653755,-500.0,0.00052054,120]
[357283634,1743978653796,-151.0,0.00052054,120]
[357283635,1743978653836,-151.0,0.00052054,120]
[357283636,1743978653879,-500.0,0.00052054,120]
[357283637,1743978653925,-500.0,0.00052054,30]
[357283638,1743978653966,-500.0,0.00052054,120]
[357283639,1743978654007,-500.0,0.00052054,120]
[357283640,1743978654047,-500.0,0.00052054,120]
[357283641,1743978654088,-734.92,0.00052054,120]
[357283642,1743978654129,-1594.02,0.00052054,120]
[357283643,1743978654174,-509.57104617,0.00052054,120]
[357283644,1743978654214,-500.0,0.00052054,120]
[357283645,1743978654253,-500.0,0.00052054,120]
[357283646,1743978654293,-500.0,0.00052054,120]
[357283647,1743978654333,-525.66,0.00052054,120]
[357283648,1743978654372,-1069.98,0.00052054,120]
[357283649,1743978654413,-510.10489481,0.00052054,120]
[357283650,1743978654458,-500.0,0.00052054,120]
[357283651,1743978654498,-216.60270925,0.00052054,120]
[357283652,1743978654544,-500.0,0.00052054,120]
[357283653,1743978654584,-500.0,0.00052054,120]
[357283654,1743978654626,-500.0,0.00052054,120]
[357283655,1743978654671,-2197.67,0.00052054,120]
[357283656,1743978654711,-500.0,0.00052054,120]
[357283657,1743978654751,-500.0,0.00052054,120]
[357283658,1743978654792,-500.0,0.00052054,120]
[357283659,1743978654831,-500.0,0.00052054,120]
[357283660,1743978654872,-522.93760532,0.00052054,120]
[357283661,1743978654914,-500.0,0.00052054,120]
[357283662,1743978654958,-500.0,0.00052054,120]
[357283663,1743978655002,-2822.5,0.00052054,120]
[357283664,1743978655044,-500.0,0.00052054,120]
[357283665,1743978655089,-722.87,0.00052054,120]
[357283666,1743978655130,-500.0,0.00052054,120]
[357283667,1743978655174,-500.0,0.00052054,120]
[357283668,1743978655215,-500.0,0.00052054,120]
[357283669,1743978655256,-500.0,0.00052054,120]
[357283670,1743978655299,-952.93,0.00052054,120]
[357283671,1743978655341,-500.0,0.00052054,120]
[357283672,1743978655383,-500.0,0.00052054,120]
[357283673,1743978655428,-508.36592917,0.00052054,120]
[357283674,1743978655630,-160.25887545,0.00052054,120]
[357283675,1743978655675,-511.10739016,0.00052054,120]
[357283676,1743978655718,-500.0,0.00052054,120]
[357283677,1743978655759,-500.0,0.00052054,120]
[357283678,1743978655800,-500.0,0.00052054,120]
[357283679,1743978655840,-500.0,0.00052054,120]
[357283680,1743978655883,-500.0,0.00052054,120]
[357283681,1743978655926,-504.36709691,0.00052054,120]
[357283682,1743978655969,-500.0,0.00052054,120]
[357283683,1743978656011,-500.0,0.00052054,120]
[357283684,1743978656054,-500.0,0.00052054,120]
[357283685,1743978656094,-500.0,0.00052054,120]
[357283686,1743978656135,-1778.48,0.00052054,120]
[357283687,1743978656177,-500.0,0.00052054,120]
[357283688,1743978656219,-500.0,0.00052054,120]
[357283689,1743978656258,-500.0,0.00052054,120]
[357283690,1743978656300,-500.0,0.00052054,120]
[357283691,1743978656341,-552.27913751,0.00052054,120]
[357283692,1743978656381,-500.0,0.00052054,120]
[357283693,1743978656423,-500.0,0.00052054,120]
[357283694,1743978656469,-500.0,0.00052054,120]
[357283695,1743978656514,-500.0,0.00052054,120]
[357283696,1743978656557,-500.0,0.00052054,120]
[357283697,1743978656599,-566.78,0.00052054,120]
[357283698,1743978656640,-246.023368,0.00052073,120]
[357283699,1743978656684,-246.023368,0.00052073,120]
[357283700,1743978656726,-151.0,0.00052073,120]
[357283701,1743978656769,-151.0,0.00052073,120]
[357283702,1743978656811,-151.0,0.00052073,120]
[357283703,1743978656854,-558.368642,0.00052073,120]
[357283704,1743978656898,-558.368642,0.00052073,120]
[357283705,1743978656942,-3839.5,0.000521,60]
[357283706,1743978656985,-200.0,0.00052223,120]
[357283707,1743978657028,-1137.80524169,0.00052356,120]
[357283708,1743978657073,-178.21,0.00052502,120]
[357283709,1743978657116,-151.0,0.00052552,120]
[357283710,1743978657160,-151.0,0.00052552,120]
[357283711,1743978657204,-151.0,0.00052552,120]
[357283712,1743978657247,-151.0,0.00052552,120]
[357283713,1743978657291,-151.0,0.00052552,120]
[357283714,1743978657335,-622.515308,0.00052552,120]
[357283715,1743978657377,-622.515308,0.00052552,120]
[357283716,1743978657418,-151.0,0.00052552,110]
[357283717,1743978657467,-318.020713,0.00052552,120]
[357283718,1743978657514,-318.020713,0.00052552,120]
[357283719,1743978657561,-158.928635,0.00052552,120]
[357283720,1743978657604,-151.0,0.00052552,120]
[357283721,1743978657652,-151.0,0.00052552,90]
[357283722,1743978657696,-151.0,0.00052554,120]
[357283723,1743978657740,-151.0,0.00052554,120]
[357283724,1743978657784,-579.314406,0.00052554,120]
[357283725,1743978657829,-579.314406,0.00052554,120]
[357283726,1743978657875,-235.731569,0.00052554,120]
[357283727,1743978657921,-235.731569,0.00052554,120]
[357283728,1743978657964,-159.582525,0.00052554,120]
[357283729,1743978658007,-159.582525,0.00052554,120]
[357283730,1743978658047,-234.036517,0.00052554,120]
[357283731,1743978658088,-234.036517,0.00052554,120]
[357283732,1743978658129,-151.0,0.00052554,120]
[357283733,1743978658170,-151.0,0.00052554,120]
[357283734,1743978658211,-284.259757,0.00052554,120]
[357283735,1743978658251,-284.259757,0.00052554,120]
[357283736,1743978658290,-160.539034,0.00052554,120]
[357283737,1743978658328,-160.539034,0.00052554,120]
[357283738,1743978658366,-151.0,0.00052554,120]
[357283739,1743978658406,-151.0,0.00052554,120]
[357283740,1743978658447,-283.9045,0.00052554,120]
[357283741,1743978658487,-277.0,0.0005257,120]
[357283742,1743978658527,-277.0,0.0005258,120]
[357283743,1743978658567,-277.0,0.0005259,120]
[357283744,1743978658607,-500.0,0.00052601,120]
[357283745,1743978658647,-276.00638637,0.00052601,120]
[357283746,1743978658689,-585.0,0.00052601,120]
[357283747,1743978658732,-585.0,0.00052601,120]
[357283748,1743978658777,-585.0,0.00052601,120]
[357283749,1743978658820,-500.0,0.00052601,120]
[357283750,1743978658861,-500.0,0.00052601,120]
[357283751,1743978658903,-500.0,0.00052601,120]
[357283752,1743978658944,-544.46450647,0.00052602,120]
[357283753,1743978658984,-250.0,0.00052602,120]
[357283754,1743978659024,-250.0,0.00052602,120]
[357283755,1743978659066,-599.129767,0.00052602,120]
[357283756,1743978659106,-175.588719,0.00052602,120]
[357283757,1743978659145,-151.0,0.00052602,120]
[357283758,1743978659185,-246.706995,0.00052602,120]
[357283759,1743978659224,-163.461916,0.00052602,120]
[357283760,1743978659262,-163.461916,0.00052602,120]
[357283761,1743978659302,-151.0,0.00052602,120]
[357283762,1743978659489,-151.0,0.00052602,120]
[357283763,1743978659531,-151.0,0.00052602,120]
[357283764,1743978659572,-167.412948,0.00052602,120]
[357283765,1743978659614,-305.467257,0.00052602,120]
[357283766,1743978659655,-305.467257,0.00052602,120]
[357283767,1743978659694,-156.894693,0.00052602,120]
[357283768,1743978659735,-2084.402863,0.00052602,120]
[357283769,1743978659776,-151.0,0.00052602,120]
[357283770,1743978659817,-151.0,0.00052602,120]
[357283771,1743978659860,-151.0,0.00052602,120]
[357283772,1743978659903,-151.0,0.00052602,120]
[357283773,1743978659946,-222.510449,0.00052602,120]
[357283774,1743978659989,-222.510449,0.00052602,120]
[357283775,1743978660034,-288.0,0.00052602,120]
[357283776,1743978660076,-151.0,0.00052602,120]
[357283777,1743978660119,-270.168469,0.00052602,120]
[357283778,1743978660161,-270.168469,0.00052602,120]
[357283779,1743978660205,-151.0,0.00052602,120]
[357283780,1743978660251,-153.517865,0.00052602,120]
[357283781,1743978660294,-533.62166125,0.00052602,120]
[357283782,1743978660335,-298.11864497,0.00052602,120]
[357283783,1743978660377,-555.55394716,0.00052602,120]
[357283784,1743978660420,-501.98829718,0.00052602,120]
[357283785,1743978660462,-586.2421258,0.00052602,120]
[357283786,1743978660504,-151.0,0.00052602,120]
[357283787,1743978660546,-500.0,0.00052602,120]
[357283788,1743978660588,-609.06197429,0.00052602,120]
[357283789,1743978660630,-151.0,0.00052602,120]
[357283790,1743978660672,-151.0,0.00052602,120]
[357283791,1743978660713,-151.0,0.00052602,120]
[357283792,1743978660754,-510.65046262,0.00052602,120]
[357283793,1743978660794,-151.0,0.00052602,120]
[357283794,1743978660836,-151.0,0.00052602,120]
[357283795,1743978660878,-151.0,0.00052602,120]
[357283796,1743978660920,-151.0,0.00052602,120]
[357283797,1743978660963,-511.56868251,0.00052602,120]
[357283798,1743978661005,-500.0,0.00052602,120]
[357283799,1743978661048,-2056.279154,0.00052602,120]
[357283800,1743978661089,-500.0,0.00052602,120]
[357283801,1743978661129,-500.0,0.00052602,120]
[357283802,1743978661170,-500.0,0.00052602,120]
[357283803,1743978661210,-622.515308,0.00052602,120]
[357283804,1743978661262,-622.515308,0.00052602,120]
[357283805,1743978661309,-314.11058902,0.00052602,120]
[357283806,1743978661352,-514.22840628,0.00052602,120]
[357283807,1743978661395,-151.0,0.00052602,110]
[357283808,1743978661442,-528.1379156,0.00052602,120]
[357283809,1743978661485,-505.68758253,0.00052602,120]
[357283810,1743978661531,-533.00315641,0.00052602,120]
[357283811,1743978661576,-545.60393739,0.00052602,120]
[357283812,1743978661621,-538.92855882,0.00052602,120]
[357283813,1743978661666,-151.0,0.00052602,120]
[357283814,1743978661709,-151.0,0.00052602,120]
[357283815,1743978661754,-151.0,0.00052602,120]
[357283816,1743978661799,-151.0,0.00052602,120]
[357283817,1743978661843,-500.0,0.00052602,120]
[357283818,1743978661888,-179.359833,0.00052602,120]
[357283819,1743978661933,-179.359833,0.00052602,120]
[357283820,1743978661975,-624.12342207,0.00052602,120]
[357283821,1743978662019,-179.359833,0.00052602,120]
[357283822,1743978662063,-179.359833,0.00052602,120]
[357283823,1743978662107,-500.0,0.00052602,120]
[357283824,1743978662148,-159.96016697,0.00052602,120]
[357283825,1743978662192,-500.0,0.00052602,120]
[357283826,1743978662241,-500.0,0.00052602,120]
[357283827,1743978662284,-500.0,0.00052602,120]
[357283828,1743978662325,-500.0,0.00052602,120]
[357283829,1743978662367,-318.020713,0.00052602,120]
[357283830,1743978662413,-500.0,0.00052602,120]
[357283831,1743978662463,-295.06438691,0.00052602,120]
[357283832,1743978662516,-318.020713,0.00052602,120]
[357283833,1743978662568,-500.0,0.00052602,120]
[357283834,1743978662616,-500.0,0.00052602,120]
[357283835,1743978662667,-500.0,0.00052602,120]
[357283836,1743978662715,-500.0,0.00052602,120]
[357283837,1743978662764,-500.0,0.00052602,120]
[357283838,1743978662812,-575.549479,0.00052602,120]
[357283839,1743978662860,-500.0,0.00052602,120]
[357283840,1743978662914,-575.549479,0.00052602,120]
[357283841,1743978662961,-500.0,0.00052602,120]
[357283842,1743978663008,-500.0,0.00052602,120]
[357283843,1743978663054,-575.549479,0.00052602,120]
[357283844,1743978663102,-500.0,0.00052602,120]
[357283845,1743978663149,-575.549479,0.00052602,120]
[357283846,1743978663199,-502.45524684,0.00052602,120]
[357283847,1743978663487,-500.0,0.00052602,120]
[357283848,1743978663532,-500.0,0.00052602,120]
[357283849,1743978663576,-500.0,0.00052602,120]
[357283850,1743978663621,-500.0,0.00052602,120]
[357283851,1743978663665,-500.0,0.00052602,120]
[357283852,1743978663713,-515.56706733,0.00052602,120]
[357283853,1743978663759,-500.0,0.00052602,120]
[357283854,1743978663803,-506.45027585,0.00052602,120]
[357283855,1743978663848,-500.0,0.00052602,120]
[357283856,1743978663896,-500.0,0.00052602,120]
[357283857,1743978663946,-500.0,0.00052602,120]
[357283858,1743978663992,-500.0,0.00052602,120]
[357283859,1743978664040,-305.45122,0.00052602,120]
[357283860,1743978664084,-500.0,0.00052602,120]
[357283861,1743978664127,-500.0,0.00052602,120]
[357283862,1743978664172,-305.45122,0.00052602,120]
[357283863,1743978664215,-359.5,0.00052602,120]
[357283864,1743978664258,-500.0,0.00052602,120]
[357283865,1743978664300,-500.0,0.00052602,120]
[357283866,1743978664343,-414.41930111,0.00052602,120]
[357283867,1743978664384,-305.45122,0.00052602,120]
[357283868,1743978664430,-305.45122,0.00052602,120]
[357283869,1743978664485,-500.0,0.00052602,120]
[357283870,1743978664527,-372.54636985,0.00052602,120]
[357283871,1743978664580,-556.60295361,0.00052602,120]
[357283872,1743978664629,-500.0,0.00052602,120]
[357283873,1743978664672,-151.0,0.00052602,120]
[357283874,1743978664715,-500.0,0.00052602,120]
[357283875,1743978664760,-151.0,0.00052602,120]
[357283876,1743978664805,-192.98204747,0.00052602,120]
[357283877,1743978664851,-500.0,0.00052602,120]
[357283878,1743978664895,-151.0,0.00052602,120]
[357283879,1743978664941,-151.0,0.00052602,120]
[357283880,1743978664988,-876.59,0.00052602,120]
[357283881,1743978665031,-500.0,0.00052602,120]
[357283882,1743978665076,-500.0,0.00052602,120]
[357283883,1743978665119,-500.0,0.00052602,120]
[357283884,1743978665162,-500.0,0.00052602,120]
[357283885,1743978665205,-500.0,0.00052602,120]
[357283886,1743978665250,-500.0,0.00052602,120]
[357283887,1743978665293,-500.0,0.00052602,120]
[357283888,1743978665336,-500.0,0.00052602,120]
[357283889,1743978665381,-500.0,0.00052602,120]
[357283890,1743978665429,-500.0,0.00052602,120]
[357283891,1743978665482,-500.0,0.00052602,120]
[357283892,1743978665528,-500.0,0.00052602,120]
[357283893,1743978665571,-500.0,0.00052602,120]
[357283894,1743978665617,-500.0,0.00052602,120]
[357283895,1743978665663,-500.0,0.00052602,120]
[357283896,1743978665706,-500.0,0.00052602,120]
[357283897,1743978665748,-500.0,0.00052602,120]
[357283898,1743978665791,-414.29664603,0.00052602,120]
[357283899,1743978665833,-500.0,0.00052602,120]
[357283900,1743978665877,-550.90987855,0.00052602,120]
[357283901,1743978665919,-530.79372836,0.00052602,120]
[357283902,1743978665960,-500.0,0.00052602,120]
[357283903,1743978665999,-500.0,0.00052602,120]
[357283904,1743978666038,-500.0,0.00052602,120]
[357283905,1743978666079,-509.25,0.00052602,120]
[357283906,1743978666121,-797.7,0.00052602,120]
[357283907,1743978666163,-500.0,0.00052602,120]
[357283908,1743978666204,-500.0,0.00052602,120]
[357283909,1743978666246,-500.0,0.00052602,120]
[357283910,1743978666286,-500.0,0.00052602,120]
[357283911,1743978666328,-232.60797557,0.00052602,120]
[357283912,1743978666369,-500.0,0.00052602,120]
[357283913,1743978666414,-500.0,0.00052602,120]
[357283914,1743978666460,-500.0,0.00052602,120]
[357283915,1743978666507,-500.0,0.00052602,120]
[357283916,1743978666552,-246.023368,0.00052602,120]
[357283917,1743978666601,-500.0,0.00052602,120]
[357283918,1743978666649,-246.023368,0.00052602,120]
[357283919,1743978666699,-151.0,0.00052602,120]
[357283920,1743978666745,-500.0,0.00052602,120]
[357283921,1743978666793,-278.50498979,0.00052602,120]
[357283922,1743978666837,-500.0,0.00052602,120]
[357283923,1743978666883,-500.0,0.00052602,120]
[357283924,1743978666926,-500.0,0.00052602,120]